bitfinex/quotes_BTCUSD_20250212
["timestamp","ask_amount","ask_price","bid_price","bid_amount"]
[1739379655248,0.154209,97271.0,97269.0,0.00413276]
[1739379655484,0.4102984,97290.0,97269.0,0.00413276]
[1739379655693,0.154208,97271.0,97269.0,0.00013276]
[1739379655903,0.154208,97271.0,97269.0,0.00613276]
[1739379656102,0.10250365,97270.0,97269.0,0.00613276]
[1739379656309,0.205541,97305.0,97269.0,0.10863641]
[1739379656516,0.0001067,97287.0,97285.0,0.154185]
[1739379656735,0.0001067,97287.0,97270.0,0.10250365]
[1739379657157,0.0001067,97287.0,97285.0,0.154185]
[1739379657367,0.0001067,97287.0,97286.0,0.10353143]
[1739379657571,0.0001067,97287.0,97286.0,0.10250365]
[1739379658182,0.0001067,97287.0,97270.0,0.007]
[1739379658387,6.67e-05,97287.0,97283.0,0.154188]
[1739379658588,6.67e-05,97287.0,97286.0,0.007]
[1739379658994,6.67e-05,97287.0,97271.0,0.10250365]
[1739379659198,6.67e-05,97287.0,97286.0,0.007]
[1739379659402,6.67e-05,97287.0,97286.0,0.10950365]
[1739379660033,6.67e-05,97287.0,97286.0,0.33793131]
[1739379660237,0.0001466,97333.0,97324.0,0.154124]
[1739379660438,0.0001466,97333.0,97324.0,0.25662765]
[1739379661604,0.09197984,97325.0,97324.0,0.25662765]
[1739379661923,0.09197984,97325.0,97324.0,0.161124]
[1739379662123,0.09197984,97325.0,97324.0,0.007]
[1739379662908,0.00044079,97325.0,97324.0,0.007]
[1739379663786,0.00044079,97325.0,97283.0,0.205585]
[1739379664011,0.00044079,97325.0,97277.0,0.08228294]
[1739379664012,0.00044079,97325.0,97296.0,0.10250365]
[1739379664217,0.00044079,97325.0,97324.0,0.155124]
[1739379664422,0.00044079,97325.0,97324.0,0.154124]
[1739379664626,0.00044079,97325.0,97324.0,0.25762765]
[1739379665035,0.00044079,97325.0,97324.0,0.25662765]
[1739379665238,0.00044079,97325.0,97321.0,0.154128]
[1739379665445,0.00044079,97325.0,97316.0,0.154136]
[1739379665644,0.00044079,97325.0,97316.0,0.10250365]
[1739379665852,0.00044079,97325.0,97313.0,0.20552]
[1739379665853,0.00044079,97325.0,97313.0,0.15414]
[1739379666059,0.00044079,97325.0,97321.0,0.154127]
[1739379666261,0.00054739,97325.0,97323.0,0.154125]
[1739379666434,0.00054739,97325.0,97324.0,0.10250365]
[1739379666859,0.00054739,97325.0,97324.0,0.10950365]
[1739379667687,0.00054739,97325.0,97324.0,0.10250365]
[1739379668129,0.00054739,97325.0,97323.0,0.007]
[1739379668331,0.00054739,97325.0,97323.0,0.154124]
[1739379668590,0.00054739,97325.0,97324.0,0.10950365]
[1739379668794,0.00054739,97325.0,97324.0,0.11053095]
[1739379669000,0.00054739,97325.0,97324.0,0.11053081]
[1739379669639,0.00054739,97325.0,97324.0,0.11053077]
[1739379669841,0.00054739,97325.0,97324.0,0.10353077]
[1739379670224,0.00054739,97325.0,97324.0,1.60950365]
[1739379670524,0.00054739,97325.0,97324.0,0.10250365]
[1739379670742,0.00054739,97325.0,97324.0,0.11053078]
[1739379670945,0.00054739,97325.0,97324.0,0.10353078]
[1739379671296,0.00054739,97325.0,97324.0,0.11053078]
[1739379671498,0.00054739,97325.0,97324.0,0.10950365]
[1739379672722,0.00054739,97325.0,97324.0,0.11053077]
[1739379672972,0.00054739,97325.0,97324.0,0.26753077]
[1739379673215,0.00054739,97325.0,97324.0,0.26650365]
[1739379673459,0.00054739,97325.0,97324.0,1.75250365]
[1739379673661,0.00054739,97325.0,97324.0,1.75950365]
[1739379673862,0.00054739,97325.0,97324.0,1.76250365]
[1739379674038,0.00054739,97325.0,97324.0,1.76950365]
[1739379674630,0.0001466,97333.0,97332.0,0.154111]
[1739379674806,0.0001466,97333.0,97332.0,0.25777434]
[1739379675002,0.0001466,97333.0,97332.0,0.26674741]
[1739379675228,0.0001466,97333.0,97332.0,0.41674741]
[1739379675427,0.0001065,97338.0,97337.0,0.01]
[1739379675428,7.1e-06,97338.0,97337.0,0.01]
[1739379675628,7.1e-06,97338.0,97337.0,0.41763351]
[1739379675790,0.030789,97360.0,97348.0,0.154086]
[1739379676038,0.00041593,97402.0,97384.0,0.154028]
[1739379676234,0.02112731,97401.0,97373.0,0.154045]
[1739379676446,0.02112731,97401.0,97373.0,0.10250365]
[1739379676646,0.43110205,97400.0,97347.0,0.00020545]
[1739379676848,0.43110205,97400.0,97361.0,0.28770294]
[1739379677140,0.10250365,97400.0,97361.0,0.28770294]
[1739379677366,0.154011,97396.0,97384.0,0.003]
[1739379677540,0.10250365,97400.0,97366.0,0.205409]
[1739379677697,0.154021,97390.0,97361.0,0.0824157]
[1739379678067,0.10250365,97390.0,97361.0,0.0824157]
[1739379678249,0.205337,97401.0,97374.0,0.154044]
[1739379678518,0.13570801,97400.0,97362.0,0.10250365]
[1739379678713,0.154026,97387.0,97361.0,0.20655276]
[1739379678909,0.3285984,97390.0,97363.0,0.23634394]
[1739379678910,0.10250365,97386.0,97363.0,0.23634394]
[1739379679206,0.3285984,97380.0,97361.0,0.00113276]
[1739379679349,0.10250365,97379.0,97361.0,0.00113276]
[1739379679770,0.1312,97377.0,97361.0,0.00013276]
[1739379679980,0.304064,97362.0,97361.0,0.00413276]
[1739379680164,0.10250365,97369.0,97361.0,0.00413276]
[1739379680165,0.10250365,97369.0,97361.0,0.00013276]
[1739379680570,0.01471562,97379.0,97361.0,0.00013276]
[1739379680880,0.10250365,97376.0,97361.0,0.00013276]
[1739379681120,0.3285984,97371.0,97361.0,0.00713276]
[1739379681314,0.154064,97363.0,97361.0,0.00713276]
[1739379681485,0.10250365,97362.0,97361.0,0.00013276]
[1739379682117,0.25250365,97362.0,97361.0,0.00013276]
[1739379682291,0.25250365,97362.0,97361.0,9.276e-05]
[1739379682292,0.36370365,97362.0,97361.0,9.276e-05]
[1739379682470,0.18618792,97362.0,97361.0,9.276e-05]
[1739379682673,0.11728748,97362.0,97361.0,9.276e-05]
[1739379682873,0.01478383,97362.0,97361.0,9.276e-05]
[1739379683075,0.154056,97367.0,97361.0,9.276e-05]
[1739379683299,0.3285984,97380.0,97361.0,0.00209276]
[1739379683575,0.10250365,97376.0,97361.0,9.276e-05]
[1739379683756,0.205397,97373.0,97361.0,9.276e-05]
[1739379683966,0.154056,97367.0,97361.0,9.276e-05]
[1739379684114,0.30789265,97376.0,97361.0,9.276e-05]
[1739379684317,0.14645021,97377.0,97361.0,9.276e-05]
[1739379684717,0.06315021,97377.0,97361.0,0.00109276]
[1739379684914,0.4054984,97390.0,97361.0,0.00109276]
[1739379684915,0.154024,97388.0,97361.0,0.00109276]
[1739379685136,0.154022,97389.0,97365.0,0.154058]
[1739379685253,0.0769,97390.0,97365.0,0.154058]
[1739379685254,0.23092,97390.0,97365.0,0.154058]
[1739379685458,0.154032,97383.0,97362.0,0.10250365]
[1739379685680,0.154032,97382.0,97362.0,0.10250365]
[1739379685878,0.4054984,97390.0,97362.0,0.10250365]
[1739379686080,0.34390144,97390.0,97362.0,0.10250365]
[1739379686398,0.01530304,97390.0,97362.0,0.10250365]
[1739379686590,0.253044,97398.0,97370.0,0.15405]
[1739379686787,0.253044,97398.0,97362.0,0.10250365]
[1739379686788,0.15402,97390.0,97365.0,0.154058]
[1739379687025,0.154017,97392.0,97367.0,0.154056]
[1739379687225,0.154017,97392.0,97368.0,0.154053]
[1739379687438,0.154017,97392.0,97367.0,0.10250365]
[1739379687439,0.205348,97396.0,97367.0,0.10250365]
[1739379687673,0.10250365,97395.0,97361.0,9.276e-05]
[1739379687884,0.10250365,97395.0,97362.0,0.10250365]
[1739379688093,0.154023,97388.0,97365.0,0.001]
[1739379688301,0.10250365,97395.0,97365.0,0.155058]
[1739379688302,0.154022,97389.0,97365.0,0.155058]
[1739379688496,0.154025,97387.0,97365.0,0.001]
[1739379688912,0.154025,97387.0,97364.0,0.15406]
[1739379689143,0.154025,97387.0,97362.0,0.10250365]
[1739379689144,0.3285984,97380.0,97362.0,0.001]
[1739379689296,0.154042,97376.0,97362.0,0.001]
[1739379689462,0.154033,97382.0,97362.0,0.001]
[1739379689661,0.205374,97384.0,97362.0,0.001]
[1739379689863,0.205374,97384.0,97368.0,0.00022365]
[1739379690117,0.154021,97389.0,97368.0,0.00022365]
[1739379690314,0.16875203,97391.0,97368.0,0.15427765]
[1739379690488,0.3285984,97400.0,97368.0,0.00022365]
[1739379690795,0.10250365,97397.0,97368.0,0.00022365]
[1739379691211,0.15403,97384.0,97368.0,0.00022365]
[1739379691615,0.154026,97386.0,97368.0,0.00022365]
[1739379691832,0.01506465,97398.0,97369.0,0.10250365]
[1739379692027,0.01506465,97398.0,97376.0,0.154041]
[1739379692231,0.154004,97400.0,97377.0,0.10250365]
[1739379692402,0.01510788,97402.0,97377.0,0.10250365]
[1739379692613,0.01510788,97402.0,97378.0,0.205385]
[1739379692820,0.154005,97399.0,97378.0,0.205385]
[1739379693062,0.01510788,97402.0,97377.0,0.10250365]
[1739379693264,0.01510788,97402.0,97378.0,0.10250365]
[1739379693459,0.205341,97399.0,97378.0,0.10250365]
[1739379693685,0.04257799,97398.0,97368.0,0.02963876]
[1739379693893,0.01510788,97402.0,97368.0,0.02963876]
[1739379693894,0.01510788,97402.0,97400.0,0.154003]
[1739379694086,0.01510788,97402.0,97401.0,0.10250365]
[1739379694295,0.01510788,97402.0,97384.0,0.154029]
[1739379694507,0.01510788,97402.0,97365.0,0.0477]
[1739379694710,0.01510788,97402.0,97370.0,0.3285984]
[1739379694928,0.01510788,97402.0,97399.0,0.154005]
[1739379695138,0.01510788,97402.0,97375.0,0.02941511]
[1739379695345,0.01510788,97402.0,97400.0,0.154003]
[1739379695759,0.01510788,97402.0,97401.0,0.10250365]
[1739379696171,0.0001066,97402.0,97384.0,0.002]
[1739379696398,0.0001066,97402.0,97385.0,0.10250365]
[1739379696611,0.0001066,97402.0,97396.0,0.154009]
[1739379696809,0.0001066,97402.0,97396.0,0.10250365]
[1739379697577,0.0001066,97402.0,97397.0,0.22372168]
[1739379697795,0.0001066,97402.0,97397.0,0.01837668]
[1739379699047,0.15596621,97408.0,97402.0,0.00037952]
[1739379699292,0.01668102,97408.0,97402.0,0.00037952]
[1739379699498,0.00197421,97408.0,97402.0,0.00037952]
[1739379700556,0.00197421,97408.0,97406.0,0.02951747]
[1739379700766,0.01707772,97408.0,97406.0,0.02951747]
[1739379700971,0.00197421,97408.0,97406.0,0.02951747]
[1739379701178,0.15596621,97408.0,97406.0,0.02951747]
[1739379701377,0.25846986,97408.0,97406.0,0.02951747]
[1739379701673,0.153999,97403.0,97402.0,0.00737952]
[1739379701885,0.153999,97403.0,97402.0,0.00037952]
[1739379702084,0.25650265,97403.0,97402.0,0.00037952]
[1739379702510,0.154019,97390.0,97389.0,0.01837668]
[1739379702916,0.0461,97404.0,97389.0,0.01837668]
[1739379702917,0.02060542,97403.0,97389.0,0.01837668]
[1739379703138,0.3285984,97420.0,97389.0,0.01837668]
[1739379703139,0.154006,97399.0,97389.0,0.01837668]
[1739379703355,0.00197421,97408.0,97370.0,0.2054]
[1739379703555,0.10250365,97407.0,97372.0,0.205396]
[1739379703792,0.10250365,97407.0,97406.0,0.003]
[1739379703793,0.25649665,97407.0,97406.0,0.003]
[1739379704000,0.02735874,97407.0,97366.0,0.08228294]
[1739379704205,0.10250365,97406.0,97389.0,0.004]
[1739379704524,0.154016,97393.0,97373.0,0.154045]
[1739379704729,0.00197421,97408.0,97384.0,0.00113276]
[1739379704949,0.3285984,97400.0,97384.0,0.00013276]
[1739379705161,0.154012,97395.0,97384.0,0.00013276]
[1739379705324,0.10250365,97407.0,97389.0,0.002]
[1739379705531,0.154019,97390.0,97389.0,0.002]
[1739379706571,0.3285984,97400.0,97389.0,0.002]
[1739379706572,0.154005,97400.0,97389.0,0.002]
[1739379706770,0.02075893,97404.0,97389.0,0.002]
[1739379706972,0.12326258,97404.0,97389.0,0.002]
[1739379707196,0.12326258,97404.0,97384.0,0.00013276]
[1739379707402,0.154027,97385.0,97384.0,0.00113276]
[1739379707762,0.25653065,97385.0,97384.0,0.00113276]
[1739379708149,0.25653065,97385.0,97384.0,0.00013276]
[1739379708555,0.25653065,97385.0,97384.0,0.00613276]
[1739379708820,0.27161552,97385.0,97384.0,0.00613276]
[1739379709012,0.27161552,97385.0,97384.0,0.00013276]
[1739379709836,0.16911187,97385.0,97384.0,0.00013276]
[1739379710635,0.27161552,97385.0,97384.0,0.00013276]
[1739379710835,0.27161552,97385.0,97384.0,0.00613276]
[1739379711247,0.34462967,97385.0,97384.0,0.00283276]
[1739379711482,0.154053,97369.0,97349.0,0.00041099]
[1739379711680,0.25655665,97369.0,97368.0,0.00035644]
[1739379711852,0.40655665,97369.0,97368.0,0.00013279]
[1739379712053,0.16,97368.0,97330.0,0.09760561]
[1739379712321,0.154113,97331.0,97330.0,0.09773848]
[1739379712746,0.205478,97334.0,97330.0,0.01545554]
[1739379712747,0.154111,97332.0,97330.0,0.01545554]
[1739379713172,0.10250365,97331.0,97330.0,0.01545554]
[1739379713385,0.10250365,97331.0,97330.0,0.00013287]
[1739379713983,0.154111,97332.0,97330.0,0.00013287]
[1739379714525,0.154111,97332.0,97330.0,0.00413287]
[1739379714769,0.10250365,97331.0,97330.0,0.00413287]
[1739379715395,0.19420598,97331.0,97330.0,0.00013287]
[1739379715610,0.19420598,97331.0,97330.0,0.00413287]
[1739379715828,0.32075139,97331.0,97330.0,0.00396001]
[1739379715998,0.32075139,97331.0,97294.0,0.00020556]
[1739379715999,0.154156,97304.0,97294.0,0.00020556]
[1739379716346,0.154156,97304.0,97303.0,0.08272373]
[1739379716539,0.154156,97304.0,97303.0,0.00044079]
[1739379717341,0.25665965,97304.0,97303.0,0.00044079]
[1739379717948,0.25865965,97304.0,97303.0,0.00044079]
[1739379718324,0.25835161,97304.0,97303.0,0.00044079]
[1739379718524,0.32529397,97304.0,97303.0,0.00044079]
[1739379718777,0.25835161,97304.0,97303.0,0.00044079]
[1739379720041,0.27162849,97304.0,97303.0,0.00044079]
[1739379720230,0.27362849,97304.0,97303.0,0.00044079]
[1739379720635,0.17112484,97304.0,97303.0,0.00044079]
[1739379720838,0.004,97304.0,97303.0,0.00044079]
[1739379721049,0.002,97304.0,97303.0,0.00044079]
[1739379721470,0.004,97304.0,97303.0,0.00044079]
[1739379721672,0.01512132,97320.0,97303.0,0.00044079]
[1739379721880,0.32901798,97330.0,97303.0,0.00044079]
[1739379722462,0.00041958,97330.0,97308.0,0.154149]
[1739379722675,0.00041958,97330.0,97306.0,0.205537]
[1739379722889,0.00041958,97330.0,97305.0,0.205539]
[1739379722890,0.01533399,97330.0,97305.0,0.205539]
[1739379723047,0.32901798,97330.0,97303.0,0.00044079]
[1739379723205,0.154144,97312.0,97303.0,0.00044079]
[1739379723407,0.154156,97304.0,97303.0,0.00044079]
[1739379723614,0.154156,97304.0,97303.0,0.00244079]
[1739379723871,0.154156,97304.0,97303.0,0.00044079]
[1739379724521,0.25665965,97304.0,97303.0,0.00044079]
[1739379724721,0.2873976,97304.0,97303.0,0.00544079]
[1739379724949,0.2728444,97304.0,97303.0,0.00544079]
[1739379725182,0.2728444,97304.0,97303.0,0.00044079]
[1739379725388,0.2728444,97304.0,97270.0,0.00022323]
[1739379725389,0.154181,97288.0,97270.0,0.00022323]
[1739379725534,0.15419,97282.0,97281.0,0.00431404]
[1739379725739,0.154208,97271.0,97270.0,0.00022323]
[1739379725998,0.25671165,97271.0,97270.0,0.00022323]
[1739379726206,0.154219,97264.0,97238.0,0.00020568]
[1739379726419,0.154219,97264.0,97225.0,0.0815]
[1739379726420,0.10250365,97263.0,97225.0,0.0815]
[1739379726632,0.154268,97233.0,97225.0,0.0815]
[1739379726804,0.154268,97233.0,97219.0,0.01532267]
[1739379727010,0.154268,97233.0,97213.0,0.16709838]
[1739379727620,0.25677165,97233.0,97213.0,0.08809838]
[1739379727979,0.25677165,97233.0,97232.0,0.00035636]
[1739379728155,0.155268,97233.0,97232.0,0.00635636]
[1739379728384,0.001,97233.0,97232.0,0.00035636]
[1739379728795,0.002,97233.0,97232.0,0.00635636]
[1739379729940,0.002,97233.0,97232.0,0.10886001]
[1739379730151,1.20627643,97329.0,97232.0,0.10388825]
[1739379730152,0.01925089,97279.0,97232.0,0.10388825]
[1739379730382,0.08228294,97261.0,97241.0,0.10250365]
[1739379730558,0.3285984,97260.0,97241.0,0.10250365]
[1739379730835,0.08228294,97261.0,97241.0,0.10250365]
[1739379730836,0.3285984,97251.0,97241.0,0.10250365]
[1739379731044,0.001,97233.0,97232.0,0.00035636]
[1739379731659,0.001,97233.0,97232.0,0.10286001]
[1739379731871,0.001,97233.0,97232.0,0.00035636]
[1739379732078,0.154267,97234.0,97232.0,0.00035636]
[1739379732457,0.205673,97242.0,97232.0,0.00035636]
[1739379732678,0.01850441,97237.0,97232.0,0.00035636]
[1739379732883,0.0205673,97241.0,97232.0,0.00035636]
[1739379732884,0.3285984,97260.0,97232.0,0.00035636]
[1739379733113,0.08228294,97239.0,97232.0,0.00035636]
[1739379733312,0.3285984,97250.0,97232.0,0.00435636]
[1739379733313,0.154267,97234.0,97232.0,0.00435636]
[1739379733465,0.154267,97234.0,97232.0,0.00035636]
[1739379734261,0.10250365,97233.0,97232.0,0.00335636]
[1739379734707,0.10250365,97233.0,97232.0,0.00035636]
[1739379735169,0.0482,97259.0,97232.0,0.00035636]
[1739379735349,0.10250365,97249.0,97232.0,0.00035636]
[1739379735599,0.0636751,97248.0,97232.0,0.00035636]
[1739379735828,0.154263,97237.0,97232.0,0.00035636]
[1739379736034,0.3285984,97240.0,97208.0,0.205743]
[1739379736249,0.01906171,97250.0,97216.0,0.00102852]
[1739379736450,0.01906171,97250.0,97217.0,0.10150529]
[1739379736649,0.205648,97254.0,97218.0,0.205723]
[1739379736804,0.154253,97243.0,97221.0,0.154287]
[1739379737013,0.004,97248.0,97215.0,0.20472975]
[1739379737229,0.004,97248.0,97216.0,0.10250365]
[1739379737575,0.08228294,97259.0,97228.0,0.154275]
[1739379737712,0.154243,97249.0,97229.0,0.10250365]
[1739379737889,0.002,97250.0,97229.0,0.10250365]
[1739379738087,0.002,97250.0,97217.0,0.048]
[1739379738088,0.3285984,97240.0,97217.0,0.048]
[1739379738299,0.3285984,97240.0,97216.0,0.205725]
[1739379738300,0.3285984,97240.0,97215.0,0.02946438]
[1739379738597,0.10250365,97249.0,97217.0,0.154294]
[1739379738598,0.154259,97239.0,97217.0,0.154294]
[1739379738772,0.154259,97239.0,97218.0,0.10250365]
[1739379738986,0.01928841,97242.0,97218.0,0.10250365]
[1739379739313,0.154267,97234.0,97218.0,0.10250365]
[1739379739559,0.3285984,97240.0,97215.0,0.02946438]
[1739379739753,0.15428,97226.0,97220.0,0.00022407]
[1739379739902,0.154282,97225.0,97220.0,0.00022407]
[1739379740102,0.154279,97227.0,97220.0,0.00022407]
[1739379740313,0.3285984,97230.0,97220.0,0.00022407]
[1739379740514,0.154286,97222.0,97220.0,0.00022407]
[1739379740929,0.3285984,97230.0,97220.0,0.00022407]
[1739379741106,0.05,97233.0,97220.0,0.00422407]
[1739379741302,0.154286,97222.0,97220.0,0.00422407]
[1739379741941,0.10250365,97221.0,97220.0,0.00422407]
[1739379742284,0.10250365,97221.0,97220.0,0.00022407]
[1739379742535,0.154311,97206.0,97205.0,0.00035678]
[1739379742740,0.25681465,97206.0,97205.0,0.00035678]
[1739379742955,0.205744,97208.0,97205.0,0.00035678]
[1739379742956,0.154308,97208.0,97205.0,0.00035678]
[1739379743146,0.3285984,97215.0,97205.0,0.00035678]
[1739379743472,0.3285984,97220.0,97205.0,0.00035678]
[1739379743673,0.205721,97219.0,97205.0,0.00035678]
[1739379743879,0.005,97206.0,97205.0,0.00135678]
[1739379744020,0.005,97206.0,97205.0,0.00035678]
[1739379744634,0.005,97206.0,97205.0,0.25717343]
[1739379745039,0.005,97206.0,97205.0,0.33447343]
[1739379745946,0.01906425,97232.0,97205.0,0.18016043]
[1739379746076,0.01906425,97232.0,97214.0,0.154297]
[1739379746285,0.154266,97235.0,97215.0,0.10250365]
[1739379746463,0.3285984,97230.0,97205.0,0.28340578]
[1739379746660,0.05,97233.0,97206.0,0.10250365]
[1739379746900,0.05,97233.0,97226.0,0.205705]
[1739379747104,0.05,97233.0,97231.0,0.15427]
[1739379747299,0.05,97233.0,97232.0,0.10250365]
[1739379748295,0.05,97233.0,97227.0,0.205703]
[1739379748296,0.05,97233.0,97218.0,0.15429]
[1739379748645,0.05,97233.0,97219.0,0.10250365]
[1739379748851,0.3285984,97230.0,97217.0,0.01470057]
[1739379749054,0.154274,97230.0,97217.0,0.01470057]
[1739379749288,0.0409966,97229.0,97217.0,0.01470057]
[1739379749511,0.154291,97219.0,97218.0,0.003]
[1739379749711,0.154291,97219.0,97217.0,0.01470057]
[1739379750236,0.205705,97227.0,97217.0,0.01470057]
[1739379750441,0.154285,97223.0,97217.0,0.01470057]
[1739379750643,0.154282,97225.0,97218.0,0.004]
[1739379750849,0.154283,97224.0,97218.0,0.004]
[1739379751043,0.154276,97228.0,97218.0,0.004]
[1739379751292,0.05,97233.0,97218.0,0.004]
[1739379751667,0.154273,97230.0,97218.0,0.004]
[1739379751845,0.0409964,97230.0,97218.0,0.004]
[1739379752165,0.154286,97222.0,97205.0,0.00035678]
[1739379752365,0.154291,97219.0,97218.0,0.00022407]
[1739379752570,0.33907759,97219.0,97218.0,0.00022407]
[1739379752762,0.154311,97206.0,97205.0,0.00035678]
[1739379752969,0.25681465,97206.0,97205.0,0.00035678]
[1739379754427,0.2756784,97206.0,97205.0,0.00035678]
[1739379755585,0.2776784,97206.0,97205.0,0.00035678]
[1739379756393,0.2756784,97206.0,97205.0,0.00035678]
[1739379756832,0.2776784,97206.0,97205.0,0.00035678]
[1739379757968,0.17517475,97206.0,97205.0,0.00035678]
[1739379758398,0.002,97206.0,97205.0,0.00035678]
[1739379758591,0.02120345,97206.0,97205.0,0.00035678]
[1739379759101,0.02120345,97206.0,97205.0,0.17996043]
[1739379759365,0.02120345,97206.0,97205.0,0.18098891]
[1739379759510,0.01920345,97206.0,97205.0,0.17996043]
[1739379759712,0.08228294,97232.0,97205.0,0.17996043]
[1739379759965,0.08228294,97232.0,97206.0,0.10250365]
[1739379760302,0.3285984,97250.0,97206.0,0.10250365]
[1739379760303,0.154241,97250.0,97231.0,0.15427]
[1739379760520,0.2057537,97254.0,97232.0,0.10250365]
[1739379760694,0.0001067,97254.0,97232.0,0.10250365]
[1739379760894,0.0001067,97254.0,97232.0,0.17840365]
[1739379761307,0.0001067,97254.0,97232.0,0.22391805]
[1739379762459,0.051,97233.0,97232.0,0.23091805]
[1739379762664,0.08228294,97256.0,97253.0,0.154235]
[1739379762863,0.08228294,97266.0,97254.0,0.10250365]
[1739379763087,0.205592,97280.0,97254.0,0.10250365]
[1739379763294,0.3285984,97270.0,97232.0,0.1285]
[1739379763496,0.154232,97256.0,97233.0,0.10250365]
[1739379763697,0.3285984,97250.0,97233.0,0.10250365]
[1739379763900,0.205659,97248.0,97233.0,0.00013292]
[1739379764072,0.154246,97248.0,97234.0,0.10250365]
[1739379764281,0.3285984,97250.0,97233.0,0.00013292]
[1739379764478,0.154267,97234.0,97233.0,0.00013292]
[1739379765706,0.10250365,97234.0,97189.0,0.02453297]
[1739379765905,0.00102852,97233.0,97200.0,0.41088134]
[1739379766104,0.001,97234.0,97232.0,0.15427]
[1739379766304,0.001,97234.0,97233.0,0.00102823]
[1739379766713,0.001,97234.0,97231.0,0.205695]
[1739379766714,0.154231,97257.0,97239.0,0.154257]
[1739379767005,0.08228294,97270.0,97240.0,0.10250365]
[1739379767128,0.08228294,97270.0,97199.0,0.0207478]
[1739379767129,0.154251,97244.0,97228.0,0.154276]
[1739379767325,0.154256,97241.0,97229.0,0.10250365]
[1739379767576,0.154256,97241.0,97207.0,0.08228294]
[1739379767577,0.00102852,97240.0,97207.0,0.08228294]
[1739379767780,0.01912496,97253.0,97229.0,0.25677765]
[1739379768004,0.01912496,97253.0,97229.0,0.10243085]
[1739379768327,0.15428,97226.0,97210.0,0.154304]
[1739379768525,0.15428,97226.0,97211.0,0.10250365]
[1739379768659,0.00102852,97248.0,97211.0,0.10250365]
[1739379768859,0.00102852,97248.0,97212.0,0.10250365]
[1739379768860,0.205663,97246.0,97212.0,0.10250365]
[1739379769067,0.2057,97229.0,97212.0,0.10250365]
[1739379769409,0.154288,97221.0,97212.0,0.10250365]
[1739379769613,0.04986681,97245.0,97212.0,0.10250365]
[1739379769835,0.04986681,97245.0,97213.0,0.00102851]
[1739379769972,0.04986681,97245.0,97234.0,0.10250365]
[1739379770349,0.04986681,97245.0,97244.0,0.154251]
[1739379770595,0.03069383,97269.0,97244.0,0.10250365]
[1739379770804,0.03069383,97269.0,97245.0,0.10250365]
[1739379771519,0.03069383,97269.0,97246.0,0.154247]
[1739379771678,0.03069383,97269.0,97247.0,0.10250365]
[1739379771881,0.05089052,97268.0,97247.0,0.10250365]
[1739379772081,0.05089052,97268.0,97225.0,0.0481]
[1739379772082,0.3285984,97260.0,97225.0,0.0481]
[1739379772350,0.00102852,97259.0,97226.0,0.10250365]
[1739379772517,0.154269,97233.0,97226.0,0.10250365]
[1739379772726,0.154287,97222.0,97208.0,0.0497]
[1739379772925,0.205659,97248.0,97209.0,0.10250365]
[1739379772926,0.3285984,97240.0,97209.0,0.10250365]
[1739379773092,0.20670652,97239.0,97209.0,0.10250365]
[1739379773291,0.154307,97209.0,97198.0,0.154323]
[1739379773492,0.154301,97213.0,97202.0,0.10250365]
[1739379773754,0.154278,97227.0,97226.0,0.007]
[1739379774184,0.3285984,97260.0,97226.0,0.10950365]
[1739379774410,0.0809,97264.0,97227.0,0.10250365]
[1739379774411,0.205653,97251.0,97227.0,0.10250365]
[1739379774611,0.204121,97239.0,97228.0,0.154276]
[1739379774895,0.204121,97239.0,97229.0,0.10250365]
[1739379775029,0.255541,97239.0,97229.0,0.10250365]
[1739379775228,0.256541,97239.0,97229.0,0.10250365]
[1739379775429,0.205687,97235.0,97229.0,0.10250365]
[1739379775633,0.154272,97231.0,97229.0,0.10250365]
[1739379776224,0.154287,97221.0,97209.0,0.154305]
[1739379776429,0.154289,97220.0,97210.0,0.10250365]
[1739379776636,0.154291,97219.0,97210.0,0.10250365]
[1739379776807,0.01916817,97230.0,97227.0,0.00022407]
[1739379777004,0.154276,97228.0,97227.0,0.00022407]
[1739379777710,0.17344417,97228.0,97227.0,0.00022407]
[1739379778317,0.17444417,97228.0,97227.0,0.01222407]
[1739379779409,0.02008275,97228.0,97227.0,0.11472772]
[1739379779626,0.02308275,97228.0,97227.0,0.10272772]
[1739379779902,0.02008275,97228.0,97227.0,0.11172772]
[1739379780035,0.001,97228.0,97227.0,0.26600572]
[1739379780240,0.006,97228.0,97227.0,0.26600572]
[1739379780449,0.005,97228.0,97227.0,0.25700572]
[1739379780645,0.006,97228.0,97227.0,0.11172772]
[1739379781288,0.005,97228.0,97227.0,0.10272772]
[1739379781458,0.154272,97231.0,97227.0,0.10272772]
[1739379781655,0.15419936,97231.0,97228.0,0.10250365]
[1739379781963,0.359959,97234.0,97228.0,0.10250365]
[1739379782165,0.205649,97254.0,97228.0,0.10250365]
[1739379782365,0.154274,97229.0,97228.0,0.10250365]
[1739379782567,0.205687,97236.0,97228.0,0.10250365]
[1739379782927,0.08228294,97259.0,97229.0,0.00102839]
[1739379783079,0.08228294,97259.0,97230.0,0.10250365]
[1739379783297,0.154245,97248.0,97231.0,0.00102819]
[1739379783497,0.154246,97247.0,97232.0,0.10250365]
[1739379783699,0.205633,97261.0,97232.0,0.10250365]
[1739379783905,0.154241,97251.0,97236.0,0.154263]
[1739379784127,0.006,97259.0,97237.0,0.10250365]
[1739379784302,0.15423,97257.0,97241.0,0.154254]
[1739379784500,0.154232,97256.0,97242.0,0.10250365]
[1739379784703,0.0185603,97270.0,97242.0,0.10250365]
[1739379784704,0.0001067,97279.0,97243.0,0.00054193]
[1739379784904,0.003,97261.0,97248.0,0.154243]
[1739379785105,0.003,97261.0,97249.0,0.10250365]
[1739379785370,0.001,97259.0,97250.0,0.154241]
[1739379785501,0.001,97259.0,97252.0,0.154237]
[1739379785746,0.001,97259.0,97245.0,0.205666]
[1739379785747,0.001,97259.0,97253.0,0.10250365]
[1739379786123,0.3285984,97270.0,97253.0,0.10250365]
[1739379786317,0.154234,97255.0,97253.0,0.10250365]
[1739379786549,0.154241,97251.0,97249.0,0.001]
[1739379787549,0.3285984,97260.0,97227.0,0.00022407]
[1739379787753,0.3285984,97250.0,97228.0,0.10250365]
[1739379787954,0.01872935,97279.0,97228.0,0.10250365]
[1739379787955,0.154274,97229.0,97228.0,0.10250365]
[1739379788616,0.154274,97229.0,97227.0,0.00022407]
[1739379789229,0.155274,97229.0,97228.0,0.007]
[1739379789444,0.154274,97229.0,97228.0,0.00022407]
[1739379789915,0.154274,97229.0,97228.0,0.00722407]
[1739379790328,0.154274,97229.0,97228.0,0.00022407]
[1739379790530,0.154274,97229.0,97228.0,0.01522407]